[Event "11th Arad Open 2018"]
[Site "Arad"]
[Date "2018.08.08"]
[Round "5"]
[White "Costachi, Mihnea"]
[Black "Tarlev, Konstantin"]
[Result "1/2-1/2"]
[ECO "E11"]
[WhiteElo "2453"]
[BlackElo "2561"]
[Annotator "ChessBase"]
[PlyCount "93"]
[EventDate "2018.08.05"]
[EventType "swiss"]
[EventCountry "ROU"]
[SourceTitle "playchess.com"]
[Source "ChessBase"]
[SourceQuality "1"]
[TimeControl "40/5400+30:1800+30"]

1. d4 {[%emt 0:00:00]} Nf6 {[%emt 0:00:00]} 2. c4 {[%emt 0:00:02]} e6 {[%emt 0:00:00]} 3. Nf3 {[%emt 0:01:17]} Bb4+ {[%emt 0:00:00]} 4. Bd2 {[%emt 0:01:20]} a5 {[%emt 0:00:02]} 5. Nc3 {[%emt 0:01:46]} b6 {[%emt 0:01:27]} 6. e3 {[%emt 0:00:04]} Bb7 {[%emt 0:00:05]} 7. Bd3 {[%emt 0:00:26]} O-O {[%emt 0:00:22]} 8. O-O {[%emt 0:03:04]} d5 {[%emt 0:00:16]} 9. cxd5 {[%emt 0:02:08]} exd5 {[%emt 0:00:07]} 10. Ne5 {[%emt 0:00:41]} Nc6 {[%emt 0:00:06]} 11. f4 {[%emt 0:05:19]} Ne7 {[%emt 0:00:39]} 12. f5 {[%emt 0:12:19]} Nc8 {[%emt 0:00:45]} 13. Be1 {[%emt 0:03:30]} Be7 {[%emt 0:01:06]} 14. Bh4 {[%emt 0:04:15]} Nd6 {[%emt 0:01:10]} 15. Rc1 {[%emt 0:06:47]} c5 {[%emt 0:09:52]} 16. Qf3 {[%emt 0:12:19]} Re8 {[%emt 0:21:23]} 17. Qh3 {[%emt 0:10:41]} Rc8 {[%emt 0:04:28]} 18. g4 {[%emt 0:03:06]} Nfe4 {[%emt 0:09:04]} 19. f6 {[%emt 0:07:48]} Bxf6 {[%emt 0:15:47]} 20. Bxf6 {[%emt 0:01:25]} gxf6 {[%emt 0:00:04]} 21. Nf3 {[%emt 0:01:17]} Kh8 {[%emt 0:01:58]} 22. Rc2 {[%emt 0:01:57]} Rg8 {[%emt 0:03:57]} 23. Rg2 {[%emt 0:01:40]} f5 {[%emt 0:07:59]} 24. Kh1 {[%emt 0:06:22]} fxg4 {[%emt 0:06:33]} 25. Rxg4 {[%emt 0:00:07]} Rxg4 {[%emt 0:00:39]} 26. Qxg4 {[%emt 0:00:06]} Qf6 {[%emt 0:00:18]} 27. Qh3 {[%emt 0:07:17]} Rg8 {[%emt 0:01:18]} 28. Ne5 {[%emt 0:00:32]} Qg7 {[%emt 0:00:59]} 29. Bxe4 {[%emt 0:01:32]} dxe4 {[%emt 0:00:21]} 30. Nb5 {[%emt 0:00:00]} Bc8 {[%emt 0:08:01]} 31. Nxd6 {[%emt 0:00:39]} Bxh3 {[%emt 0:00:03]} 32. Nexf7+ {[%emt 0:04:30]} Qxf7 {[%emt 0:00:02]} 33. Nxf7+ {[%emt 0:00:39]} Kg7 {[%emt 0:00:03]} 34. Rf4 {[%emt 0:00:04]} Rf8 {[%emt 0:04:56]} 35. Rh4 {[%emt 0:00:50]} Rxf7 {[%emt 0:01:34]} 36. Rxh3 {[%emt 0:00:01]} Rf1+ {[%emt 0:00:03]} 37. Kg2 {[%emt 0:00:01]} Rb1 {[%emt 0:00:04]} 38. dxc5 {[%emt 0:01:04]} Rxb2+ {[%emt 0:00:05]} 39. Kg3 {[%emt 0:00:02]} bxc5 {[%emt 0:03:10]} 40. Rh5 {[%emt 0:00:00]} Rxa2 {[%emt 0:00:00]} 41. Rxc5 {[%emt 0:15:17]} a4 {[%emt 0:20:13]} 42. Ra5 {[%emt 0:01:45]} a3 {[%emt 0:01:49]} 43. Ra6 {[%emt 0:02:25]} h5 {[%emt 0:06:01]} 44. h4 {[%emt 0:00:16]} Kf7 {[%emt 0:00:46]} 45. Ra5 {[%emt 0:02:22]} Ra1 {[%emt 0:02:36]} 46. Kf4 {[%emt 0:00:53]} Rh1 {[%emt 0:00:25]} 47. Kxe4 1/2-1/2

[Event "11th Arad Open 2018"]
[Site "Arad"]
[Date "2018.08.08"]
[Round "5"]
[White "Womacka, Mathias"]
[Black "Cvetkovic, Srdjan"]
[Result "1/2-1/2"]
[ECO "B46"]
[WhiteElo "2450"]
[BlackElo "2252"]
[Annotator "ChessBase"]
[PlyCount "96"]
[EventDate "2018.08.05"]
[EventType "swiss"]
[EventCountry "ROU"]
[SourceTitle "playchess.com"]
[Source "ChessBase"]
[SourceQuality "1"]
[TimeControl "40/5400+30:1800+30"]

1. e4 {[%emt 0:00:00]} c5 {[%emt 0:00:00]} 2. Nf3 {[%emt 0:00:00]} e6 {[%emt 0:00:22]} 3. d4 {[%emt 0:00:00]} cxd4 {[%emt 0:00:07]} 4. Nxd4 {[%emt 0:00:00]} Nc6 {[%emt 0:00:43]} 5. Nc3 {[%emt 0:00:00]} a6 {[%emt 0:00:35]} 6. Be2 {[%emt 0:00:53]} d6 {[%emt 0:04:13]} 7. Be3 {[%emt 0:01:10]} Nf6 {[%emt 0:05:50]} 8. O-O {[%emt 0:01:10]} Be7 {[%emt 0:00:28]} 9. f4 {[%emt 0:01:26]} O-O {[%emt 0:00:50]} 10. Qe1 {[%emt 0:00:56]} Nxd4 {[%emt 0:02:39]} 11. Bxd4 {[%emt 0:00:08]} b5 {[%emt 0:00:28]} 12. a3 {[%emt 0:12:02]} Bb7 {[%emt 0:05:12]} 13. Qg3 {[%emt 0:00:11]} Qc7 {[%emt 0:07:15]} 14. Kh1 {[%emt 0:01:25]} Rad8 {[%emt 0:21:56]} 15. Rae1 {[%emt 0:03:12]} Bc6 {[%emt 0:00:41]} 16. Bf3 {[%emt 0:02:01]} Qb7 {[%emt 0:07:03]} 17. Nd1 {[%emt 0:02:28]} g6 {[%emt 0:03:00]} 18. Nf2 {[%emt 0:06:12]} d5 {[%emt 0:01:30]} 19. e5 {[%emt 0:04:54]} Ne4 {[%emt 0:00:15]} 20. Bxe4 {[%emt 0:19:19]} dxe4 {[%emt 0:00:03]} 21. Bc3 {[%emt 0:01:10]} h5 {[%emt 0:07:57]} 22. b4 {[%emt 0:05:22]} Bd5 {[%emt 0:02:35]} 23. Qe3 {[%emt 0:09:57]} Rc8 {[%emt 0:00:24]} 24. Rc1 {[%emt 0:04:27]} Rxc3 {[%emt 0:07:45]} 25. Qxc3 {[%emt 0:00:06]} e3 {[%emt 0:00:03]} 26. Qxe3 {[%emt 0:00:12]} Bxg2+ {[%emt 0:00:04]} 27. Kg1 {[%emt 0:00:04]} Bxf1 {[%emt 0:00:15]} 28. Kxf1 {[%emt 0:00:35]} Rc8 {[%emt 0:00:16]} 29. c3 {[%emt 0:02:28]} Rc4 {[%emt 0:01:23]} 30. Rd1 {[%emt 0:03:28]} Bh4 {[%emt 0:00:55]} 31. Rd4 {[%emt 0:01:08]} Rxd4 {[%emt 0:01:10]} 32. cxd4 {[%emt 0:00:42]} Bxf2 {[%emt 0:01:48]} 33. Kxf2 {[%emt 0:00:06]} Qd5 {[%emt 0:00:48]} 34. Kg3 {[%emt 0:04:19]} Kg7 {[%emt 0:02:08]} 35. h3 {[%emt 0:00:11]} Qh1 {[%emt 0:03:28]} 36. Qd3 {[%emt 0:06:39]} Qg1+ {[%emt 0:01:24]} 37. Kf3 {[%emt 0:00:03]} Qh2 {[%emt 0:03:55]} 38. Ke4 {[%emt 0:00:03]} Qg2+ {[%emt 0:00:34]} 39. Qf3 {[%emt 0:00:28]} Qa2 {[%emt 0:00:14]} 40. Qe3 {[%emt 0:00:00]} Qd5+ {[%emt 0:00:00]} 41. Kd3 {[%emt 0:18:00]} h4 {[%emt 0:18:18]} 42. Ke2 {[%emt 0:09:50]} Qg2+ {[%emt 0:01:08]} 43. Ke1 {[%emt 0:00:58]} Kg8 {[%emt 0:05:15]} 44. Kd1 {[%emt 0:00:11]} Qf1+ {[%emt 0:00:10]} 45. Kd2 {[%emt 0:00:19]} Kg7 {[%emt 0:00:22]} 46. Kc2 {[%emt 0:00:31]} Kf8 {[%emt 0:05:41]} 47. Kd2 {[%emt 0:00:10]} Ke7 {[%emt 0:01:00]} 48. Kc2 {[%emt 0:03:52]} Kf8 {[%emt 0:03:42]} 1/2-1/2

[Event "11th Arad Open 2018"]
[Site "Arad"]
[Date "2018.08.08"]
[Round "5"]
[White "Zawadzka, Jolanta"]
[Black "Isfan, Ioan-Marius"]
[Result "1-0"]
[ECO "B28"]
[WhiteElo "2435"]
[BlackElo "1933"]
[Annotator "NA"]
[PlyCount "65"]
[EventDate "2018.08.05"]
[EventType "swiss"]
[EventCountry "ROU"]
[SourceTitle "playchess.com"]
[Source "ChessBase"]
[SourceQuality "1"]
[TimeControl "40/5400+30:1800+30"]

1. e4 {[%emt 0:00:41]} c5 {[%emt 0:01:36]} 2. Nf3 {[%emt 0:00:07]} a6 {[%emt 0:00:05]} 3. c3 {[%emt 0:00:48]} e6 {[%emt 0:00:19]} 4. d4 {[%emt 0:00:17]} d5 {[%emt 0:00:07]} 5. exd5 {[%emt 0:00:06]} exd5 {[%emt 0:00:07]} 6. Bd3 {[%emt 0:00:36]} h6 {[%emt 0:04:25]} 7. O-O {[%emt 0:02:33]} Be6 {[%emt 0:01:23]} 8. Re1 {[%emt 0:03:37]} Nd7 {[%emt 0:01:19]} 9. c4 {[%emt 0:25:11]} Be7 {[%emt 0:12:39]} 10. cxd5 {[%emt 0:11:46]} Bxd5 {[%emt 0:00:15]} 11. Nc3 {[%emt 0:00:04]} Ngf6 {[%emt 0:02:07]} 12. Nxd5 {[%emt 0:08:31]} Nxd5 {[%emt 0:01:26]} 13. Bc4 {[%emt 0:06:15]} N7f6 {[%emt 0:04:09]} 14. dxc5 {[%emt 0:02:37]} O-O {[%emt 0:00:09]} 15. Qb3 {[%emt 0:01:15]} Rc8 {[%emt 0:17:42]} 16. Rd1 {[%emt 0:00:55]} Rxc5 {[%emt 0:00:04]} 17. Be3 {[%emt 0:00:36]} Rxc4 {[%emt 0:00:06]} 18. Qxc4 {[%emt 0:00:14]} Nxe3 {[%emt 0:00:04]} 19. fxe3 {[%emt 0:00:22]} Qb6 {[%emt 0:00:04]} 20. Kh1 {[%emt 0:08:31]} Bc5 {[%emt 0:08:37]} 21. Rd3 {[%emt 0:03:32]} Re8 {[%emt 0:16:05]} 22. Rb3 {[%emt 0:01:53]} Qc7 {[%emt 0:00:52]} 23. Rf1 {[%emt 0:01:43]} b5 {[%emt 0:02:16]} 24. Qf4 {[%emt 0:02:09]} Bd6 {[%emt 0:01:12]} 25. Qh4 {[%emt 0:00:07]} Re4 {[%emt 0:12:48]} 26. Qh3 {[%emt 0:00:56]} Qc4 {[%emt 0:02:40]} 27. g3 {[%emt 0:01:32]} Bb4 {[%emt 0:02:52]} 28. Rd1 {[%emt 0:02:41]} Ng4 {[%emt 0:02:23]} 29. Qf1 {[%emt 0:05:07]} Qc6 {[%emt 0:00:28]} 30. Qe2 {[%emt 0:01:39]} Rc4 {[%emt 0:00:28]} 31. Kg1 {[%emt 0:06:34]} Rc2 {[%emt 0:00:08]} 32. Nd2 {[%emt 0:01:25]} Bc5 {[%emt 0:03:39]} 33. Qxg4 {[%emt 0:00:31]} 1-0

[Event "11th Arad Open 2018"]
[Site "Arad"]
[Date "2018.08.08"]
[Round "5"]
[White "David, Alexandru-Vasile"]
[Black "Vujacic, Borivoje"]
[Result "1-0"]
[ECO "A28"]
[WhiteElo "2421"]
[BlackElo "2235"]
[Annotator "NA"]
[PlyCount "87"]
[EventDate "2018.08.05"]
[EventType "swiss"]
[EventCountry "ROU"]
[SourceTitle "playchess.com"]
[Source "ChessBase"]
[SourceQuality "1"]
[TimeControl "40/5400+30:1800+30"]

1. c4 {[%emt 0:10:00]} e5 {[%emt 0:00:43]} 2. Nc3 {[%emt 0:00:08]} Nf6 {[%emt 0:04:11]} 3. Nf3 {[%emt 0:00:14]} Nc6 {[%emt 0:00:21]} 4. e3 {[%emt 0:00:05]} Bb4 {[%emt 0:00:44]} 5. Qc2 {[%emt 0:00:08]} O-O {[%emt 0:00:33]} 6. Nd5 {[%emt 0:03:28]} Re8 {[%emt 0:01:37]} 7. Qf5 {[%emt 0:00:06]} d6 {[%emt 0:08:50]} 8. Nxf6+ {[%emt 0:00:07]} Qxf6 {[%emt 0:00:11]} 9. Qxf6 {[%emt 0:00:07]} gxf6 {[%emt 0:00:07]} 10. a3 {[%emt 0:00:09]} Bc5 {[%emt 0:01:08]} 11. b4 {[%emt 0:00:05]} Bb6 {[%emt 0:00:54]} 12. Bb2 {[%emt 0:00:05]} a6 {[%emt 0:07:05]} 13. O-O-O {[%emt 0:05:53]} Be6 {[%emt 0:15:39]} 14. d4 {[%emt 0:02:08]} Ne7 {[%emt 0:00:44]} 15. Nd2 {[%emt 0:02:43]} Bg4 {[%emt 0:06:19]} 16. f3 {[%emt 0:04:57]} Bf5 {[%emt 0:01:52]} 17. g4 {[%emt 0:03:00]} Bg6 {[%emt 0:00:59]} 18. h4 {[%emt 0:00:19]} h6 {[%emt 0:01:29]} 19. f4 {[%emt 0:00:48]} exf4 {[%emt 0:06:45]} 20. exf4 {[%emt 0:00:16]} h5 {[%emt 0:00:20]} 21. f5 {[%emt 0:00:47]} Bh7 {[%emt 0:02:45]} 22. Ne4 {[%emt 0:00:13]} Nd5 {[%emt 0:08:14]} 23. Re1 {[%emt 0:05:28]} hxg4 {[%emt 0:03:25]} 24. cxd5 {[%emt 0:00:05]} Kf8 {[%emt 0:01:43]} 25. Bg2 Bxf5 {[%emt 0:00:18]} 26. Nxf6 {[%emt 0:00:41]} Rxe1+ {[%emt 0:00:41]} 27. Rxe1 {[%emt 0:00:10]} Kg7 {[%emt 0:00:13]} 28. Nh5+ {[%emt 0:01:04]} Kg6 {[%emt 0:01:36]} 29. Ng3 {[%emt 0:00:24]} Bd3 {[%emt 0:00:51]} 30. Kd2 {[%emt 0:00:49]} Bb5 {[%emt 0:00:30]} 31. Be4+ {[%emt 0:00:39]} Kg7 {[%emt 0:01:42]} 32. Bd3 {[%emt 0:04:43]} Bd7 {[%emt 0:02:15]} 33. Nh5+ {[%emt 0:00:57]} Kh6 {[%emt 0:02:18]} 34. Nf6 {[%emt 0:00:13]} Ba4 {[%emt 0:00:25]} 35. Kc3 {[%emt 0:00:40]} Rh8 {[%emt 0:01:33]} 36. Bc1+ {[%emt 0:00:36]} Kg7 {[%emt 0:00:06]} 37. Bg5 {[%emt 0:00:07]} c5 {[%emt 0:03:22]} 38. Nxg4 {[%emt 0:02:48]} Rc8 {[%emt 0:02:55]} 39. Bf6+ {[%emt 0:01:27]} Kf8 {[%emt 0:00:09]} 40. dxc5 {[%emt 0:00:00]} dxc5 {[%emt 0:00:00]} 41. Bf5 {[%emt 0:16:34]} cxb4+ {[%emt 0:16:17]} 42. Kxb4 {[%emt 0:00:10]} Re8 {[%emt 0:00:42]} 43. Rxe8+ {[%emt 0:00:05]} Bxe8 {[%emt 0:00:17]} 44. h5 {[%emt 0:00:05]} 1-0

[Event "11th Arad Open 2018"]
[Site "Arad"]
[Date "2018.08.08"]
[Round "5"]
[White "Petrisor, Adrian-Marian"]
[Black "Geiger, Alex-Emanuel"]
[Result "1-0"]
[ECO "A04"]
[WhiteElo "2416"]
[BlackElo "2229"]
[Annotator "NA"]
[PlyCount "71"]
[EventDate "2018.08.05"]
[EventType "swiss"]
[EventCountry "ROU"]
[SourceTitle "playchess.com"]
[Source "ChessBase"]
[SourceQuality "1"]
[TimeControl "40/5400+30:1800+30"]

1. Nf3 {[%emt 0:00:00]} c5 {[%emt 0:00:06]} 2. b3 {[%emt 0:01:16]} Nc6 {[%emt 0:01:04]} 3. Bb2 {[%emt 0:00:08]} d5 {[%emt 0:00:34]} 4. e3 {[%emt 0:00:12]} e6 {[%emt 0:01:20]} 5. Bb5 {[%emt 0:03:06]} Bd7 {[%emt 0:02:39]} 6. O-O {[%emt 0:00:54]} Nf6 {[%emt 0:00:05]} 7. c4 {[%emt 0:03:03]} Be7 {[%emt 0:03:29]} 8. cxd5 {[%emt 0:00:51]} exd5 {[%emt 0:00:09]} 9. d4 {[%emt 0:00:09]} cxd4 {[%emt 0:02:47]} 10. Nxd4 {[%emt 0:00:51]} O-O {[%emt 0:00:18]} 11. Nc3 {[%emt 0:01:08]} Bc5 {[%emt 0:07:41]} 12. Bxc6 {[%emt 0:09:32]} bxc6 {[%emt 0:00:07]} 13. Qd3 {[%emt 0:07:47]} Re8 {[%emt 0:06:14]} 14. Rac1 {[%emt 0:01:49]} Bf8 {[%emt 0:02:21]} 15. Na4 {[%emt 0:06:06]} Rc8 {[%emt 0:00:46]} 16. Nc5 {[%emt 0:00:13]} Bxc5 {[%emt 0:08:10]} 17. Rxc5 {[%emt 0:00:09]} Ne4 {[%emt 0:00:06]} 18. Rcc1 {[%emt 0:00:09]} Qa5 {[%emt 0:01:01]} 19. f3 {[%emt 0:02:58]} Nc5 {[%emt 0:04:56]} 20. Qc2 {[%emt 0:07:31]} Nb7 {[%emt 0:05:08]} 21. Nf5 {[%emt 0:07:02]} f6 {[%emt 0:10:46]} 22. e4 {[%emt 0:14:05]} Bxf5 {[%emt 0:02:30]} 23. exf5 {[%emt 0:00:02]} Nd6 {[%emt 0:00:12]} 24. Bd4 {[%emt 0:01:40]} Nb7 {[%emt 0:09:08]} 25. g4 {[%emt 0:04:28]} c5 {[%emt 0:03:39]} 26. Bf2 {[%emt 0:00:12]} Qb5 {[%emt 0:02:24]} 27. Rfe1 {[%emt 0:01:00]} Rxe1+ {[%emt 0:03:26]} 28. Rxe1 {[%emt 0:00:03]} Re8 {[%emt 0:00:13]} 29. Re6 {[%emt 0:05:25]} Kf7 {[%emt 0:13:18]} 30. a4 {[%emt 0:02:18]} Qd7 {[%emt 0:02:05]} 31. Ra6 {[%emt 0:07:10]} d4 {[%emt 0:02:26]} 32. Rxa7 {[%emt 0:01:01]} Kg8 {[%emt 0:02:20]} 33. Qc4+ {[%emt 0:02:27]} Kh8 {[%emt 0:00:06]} 34. Qa6 {[%emt 0:02:38]} Re7 {[%emt 0:00:12]} 35. Ra8+ {[%emt 0:00:45]} Nd8 {[%emt 0:00:05]} 36. Qc8 {[%emt 0:01:38]} 1-0

[Event "11th Arad Open 2018"]
[Site "Arad"]
[Date "2018.08.08"]
[Round "5"]
[White "Roubalik, Jakub"]
[Black "Martian, Dragos-Daniel"]
[Result "1-0"]
[ECO "E11"]
[WhiteElo "2402"]
[BlackElo "2223"]
[Annotator "NA"]
[PlyCount "73"]
[EventDate "2018.08.05"]
[EventType "swiss"]
[EventCountry "ROU"]
[SourceTitle "playchess.com"]
[Source "ChessBase"]
[SourceQuality "1"]
[TimeControl "40/5400+30:1800+30"]

1. d4 {[%emt 0:04:17]} Nf6 {[%emt 0:00:42]} 2. c4 {[%emt 0:00:07]} e6 {[%emt 0:00:08]} 3. Nf3 {[%emt 0:00:06]} Bb4+ {[%emt 0:00:05]} 4. Nbd2 {[%emt 0:00:05]} O-O {[%emt 0:00:34]} 5. a3 {[%emt 0:00:19]} Bxd2+ {[%emt 0:00:44]} 6. Bxd2 {[%emt 0:00:37]} h6 {[%emt 0:00:19]} 7. Qc2 {[%emt 0:00:38]} d6 {[%emt 0:03:05]} 8. Bc3 {[%emt 0:10:26]} Nbd7 {[%emt 0:02:50]} 9. e3 {[%emt 0:02:20]} Qe7 {[%emt 0:00:37]} 10. Be2 {[%emt 0:00:15]} e5 {[%emt 0:01:23]} 11. O-O {[%emt 0:00:25]} Re8 {[%emt 0:01:30]} 12. Rae1 {[%emt 0:04:34]} e4 {[%emt 0:04:21]} 13. Nd2 {[%emt 0:00:13]} d5 {[%emt 0:00:12]} 14. f3 {[%emt 0:14:04]} c6 {[%emt 0:03:14]} 15. fxe4 {[%emt 0:02:59]} Nxe4 {[%emt 0:07:49]} 16. Nxe4 {[%emt 0:00:45]} dxe4 {[%emt 0:00:19]} 17. Rf4 {[%emt 0:01:26]} Nf8 {[%emt 0:10:15]} 18. Bb4 {[%emt 0:14:16]} Qg5 {[%emt 0:01:31]} 19. Rxe4 {[%emt 0:16:48]} Qg6 {[%emt 0:21:59]} 20. Rxe8 {[%emt 0:00:06]} Qxc2 {[%emt 0:00:22]} 21. Rxf8+ Kh7 {[%emt 0:00:19]} 22. Rxf7 {[%emt 0:00:40]} Be6 {[%emt 0:04:05]} 23. Rxb7 {[%emt 0:03:03]} Bxc4 {[%emt 0:02:11]} 24. Bxc4 {[%emt 0:00:16]} Qxc4 {[%emt 0:00:04]} 25. Bc3 {[%emt 0:01:52]} Qa6 {[%emt 0:10:48]} 26. Re7 {[%emt 0:00:54]} Rg8 {[%emt 0:03:19]} 27. Rf1 {[%emt 0:04:57]} Qe2 {[%emt 0:01:52]} 28. h3 {[%emt 0:00:39]} h5 {[%emt 0:01:39]} 29. Rf2 {[%emt 0:08:30]} Qd3 {[%emt 0:00:21]} 30. Kh2 {[%emt 0:02:23]} a6 {[%emt 0:02:54]} 31. Rff7 {[%emt 0:01:03]} Kh6 {[%emt 0:02:32]} 32. Re6+ {[%emt 0:00:57]} Kh7 {[%emt 0:02:58]} 33. Re5 {[%emt 0:04:39]} Kg6 {[%emt 0:07:07]} 34. Rc7 {[%emt 0:00:51]} Rf8 {[%emt 0:01:43]} 35. Ree7 {[%emt 0:00:57]} Rf1 {[%emt 0:02:44]} 36. Rxc6+ {[%emt 0:00:41]} Kf5 {[%emt 0:00:46]} 37. Re5# {[%emt 0:00:19]} 1-0

[Event "11th Arad Open 2018"]
[Site "Arad"]
[Date "2018.08.08"]
[Round "5"]
[White "Soltanici, Ruslan"]
[Black "Bucur, Denisa-Andreea"]
[Result "1-0"]
[ECO "B43"]
[WhiteElo "2383"]
[BlackElo "2077"]
[Annotator "NA"]
[PlyCount "49"]
[EventDate "2018.08.05"]
[EventType "swiss"]
[EventCountry "ROU"]
[SourceTitle "playchess.com"]
[Source "ChessBase"]
[SourceQuality "1"]
[TimeControl "40/5400+30:1800+30"]

1. e4 {[%emt 0:00:00]} c5 {[%emt 0:00:00]} 2. Nf3 {[%emt 0:00:00]} e6 {[%emt 0:00:00]} 3. d4 {[%emt 0:00:06]} cxd4 {[%emt 0:00:00]} 4. Nxd4 {[%emt 0:00:06]} a6 {[%emt 0:00:06]} 5. Nc3 {[%emt 0:01:09]} Qc7 {[%emt 0:00:21]} 6. Bd3 {[%emt 0:01:41]} Nf6 {[%emt 0:02:09]} 7. f4 {[%emt 0:00:25]} d6 {[%emt 0:01:59]} 8. Qf3 {[%emt 0:00:21]} b5 {[%emt 0:03:08]} 9. g4 {[%emt 0:00:33]} Bb7 {[%emt 0:01:31]} 10. g5 {[%emt 0:00:47]} Nfd7 {[%emt 0:00:10]} 11. Be3 {[%emt 0:01:52]} Nc5 {[%emt 0:05:09]} 12. a3 {[%emt 0:07:11]} Nbd7 {[%emt 0:02:38]} 13. O-O-O {[%emt 0:08:11]} Rc8 {[%emt 0:02:58]} 14. Kb1 {[%emt 0:01:07]} Nb6 {[%emt 0:05:09]} 15. Rhe1 {[%emt 0:08:59]} Nca4 {[%emt 0:18:56]} 16. Nxa4 {[%emt 0:13:38]} Nxa4 {[%emt 0:02:42]} 17. Qh3 {[%emt 0:10:51]} g6 {[%emt 0:18:49]} 18. f5 {[%emt 0:06:17]} e5 {[%emt 0:01:12]} 19. fxg6 {[%emt 0:19:23]} fxg6 {[%emt 0:01:14]} 20. Ne6 {[%emt 0:00:56]} Qd7 {[%emt 0:03:25]} 21. Rf1 {[%emt 0:00:30]} Rc6 {[%emt 0:05:25]} 22. Rf6 {[%emt 0:02:33]} Be7 {[%emt 0:00:36]} 23. Rxg6 {[%emt 0:00:45]} Nc5 {[%emt 0:03:50]} 24. Qh5 {[%emt 0:03:18]} Bf8 25. Rf6+ 1-0

[Event "11th Arad Open 2018"]
[Site "Arad"]
[Date "2018.08.08"]
[Round "5"]
[White "Peptan, Corina-Isabela"]
[Black "Vachylia, Andrii"]
[Result "1/2-1/2"]
[ECO "E67"]
[WhiteElo "2380"]
[BlackElo "2192"]
[Annotator "NA"]
[PlyCount "108"]
[EventDate "2018.08.05"]
[EventType "swiss"]
[EventCountry "ROU"]
[SourceTitle "playchess.com"]
[Source "ChessBase"]
[SourceQuality "1"]
[TimeControl "40/5400+30:1800+30"]

1. c4 {[%emt 0:00:00]} Nf6 {[%emt 0:00:00]} 2. Nc3 {[%emt 0:00:10]} g6 {[%emt 0:00:00]} 3. g3 {[%emt 0:00:19]} Bg7 {[%emt 0:00:00]} 4. Bg2 {[%emt 0:00:04]} O-O {[%emt 0:00:03]} 5. d4 {[%emt 0:02:10]} d6 {[%emt 0:00:10]} 6. Nf3 {[%emt 0:00:15]} Nbd7 {[%emt 0:00:07]} 7. O-O {[%emt 0:00:08]} e5 {[%emt 0:00:21]} 8. dxe5 {[%emt 0:09:54]} dxe5 {[%emt 0:00:26]} 9. Be3 {[%emt 0:02:25]} c6 {[%emt 0:02:50]} 10. Qc1 {[%emt 0:00:13]} Re8 {[%emt 0:00:32]} 11. h3 {[%emt 0:03:02]} Qe7 {[%emt 0:01:53]} 12. Rd1 {[%emt 0:02:21]} a5 {[%emt 0:04:46]} 13. Nd2 {[%emt 0:18:49]} Nc5 {[%emt 0:12:42]} 14. Nb3 {[%emt 0:15:07]} Ne6 {[%emt 0:08:32]} 15. Na4 {[%emt 0:01:39]} Nd7 {[%emt 0:00:14]} 16. c5 {[%emt 0:02:22]} h5 {[%emt 0:03:34]} 17. h4 {[%emt 0:03:35]} Ra6 {[%emt 0:05:19]} 18. Qc4 {[%emt 0:08:36]} Nf6 {[%emt 0:01:02]} 19. Nb6 {[%emt 0:00:17]} Ng4 {[%emt 0:03:11]} 20. Bd2 {[%emt 0:04:10]} a4 {[%emt 0:10:09]} 21. Nxa4 {[%emt 0:00:02]} Nf4 {[%emt 0:03:24]} 22. Nc3 {[%emt 0:08:51]} Nxg2 {[%emt 0:03:33]} 23. Kxg2 {[%emt 0:00:02]} e4 {[%emt 0:00:23]} 24. Bg5 {[%emt 0:01:22]} Bf6 {[%emt 0:03:33]} 25. Bxf6 {[%emt 0:03:07]} Qxf6 {[%emt 0:00:04]} 26. Qd4 {[%emt 0:01:14]} Qf5 {[%emt 0:00:07]} 27. Rf1 {[%emt 0:00:36]} e3 {[%emt 0:00:42]} 28. f3 {[%emt 0:05:31]} Nf2 {[%emt 0:00:27]} 29. Rxf2 {[%emt 0:00:28]} exf2 {[%emt 0:00:36]} 30. Kxf2 {[%emt 0:01:46]} Qh3 {[%emt 0:10:02]} 31. Rg1 {[%emt 0:01:49]} Bf5 {[%emt 0:00:48]} 32. Nd2 {[%emt 0:02:23]} Raa8 {[%emt 0:03:49]} 33. Nc4 {[%emt 0:00:25]} Rad8 {[%emt 0:02:00]} 34. Nd6 {[%emt 0:00:05]} Qh2+ {[%emt 0:01:14]} 35. Rg2 {[%emt 0:00:16]} Qh1 {[%emt 0:00:05]} 36. Rg1 {[%emt 0:02:23]} Qh2+ {[%emt 0:00:06]} 37. Rg2 {[%emt 0:01:01]} Qh1 {[%emt 0:00:07]} 38. a3 {[%emt 0:01:22]} Qc1 {[%emt 0:01:44]} 39. Nd1 {[%emt 0:00:38]} Bd3 {[%emt 0:04:10]} 40. Nc3 {[%emt 0:00:00]} Bxe2 {[%emt 0:00:00]} 41. Nxe2 {[%emt 0:16:06]} Qc2 {[%emt 0:16:26]} 42. Qc4 {[%emt 0:00:47]} Rxe2+ {[%emt 0:00:47]} 43. Qxe2 {[%emt 0:00:31]} Qxc5+ {[%emt 0:00:04]} 44. Qe3 {[%emt 0:01:47]} Qxd6 {[%emt 0:00:40]} 45. Kg1 {[%emt 0:00:21]} Qd4 {[%emt 0:01:18]} 46. Qxd4 {[%emt 0:05:35]} Rxd4 {[%emt 0:00:03]} 47. Rf2 {[%emt 0:00:28]} Rd3 {[%emt 0:00:13]} 48. Kf1 {[%emt 0:00:08]} Rb3 {[%emt 0:00:07]} 49. Ke1 {[%emt 0:00:11]} Kg7 {[%emt 0:00:16]} 50. Kd1 {[%emt 0:00:05]} Kf6 {[%emt 0:00:08]} 51. Kc2 {[%emt 0:00:06]} Re3 {[%emt 0:00:05]} 52. Kd2 {[%emt 0:00:05]} Rb3 {[%emt 0:00:06]} 53. Kc2 {[%emt 0:00:04]} Re3 {[%emt 0:00:26]} 54. Kd2 {[%emt 0:00:05]} Rb3 1/2-1/2

[Event "11th Arad Open 2018"]
[Site "Arad"]
[Date "2018.08.08"]
[Round "5"]
[White "Farkas, Gabor"]
[Black "Stany, G A"]
[Result "0-1"]
[ECO "D79"]
[WhiteElo "2366"]
[BlackElo "2494"]
[Annotator "ChessBase"]
[PlyCount "54"]
[EventDate "2018.08.05"]
[EventType "swiss"]
[EventCountry "ROU"]
[SourceTitle "playchess.com"]
[Source "ChessBase"]
[SourceQuality "1"]
[TimeControl "40/5400+30:1800+30"]

1. Nf3 {[%emt 0:00:00]} Nf6 {[%emt 0:03:00]} 2. g3 {[%emt 0:00:00]} d5 {[%emt 0:00:58]} 3. Bg2 {[%emt 0:00:34]} g6 {[%emt 0:00:07]} 4. O-O {[%emt 0:00:34]} Bg7 {[%emt 0:00:05]} 5. d4 {[%emt 0:00:06]} O-O {[%emt 0:00:06]} 6. c4 {[%emt 0:01:12]} c6 {[%emt 0:00:13]} 7. cxd5 {[%emt 0:05:56]} cxd5 {[%emt 0:00:09]} 8. Nc3 {[%emt 0:00:46]} Nc6 {[%emt 0:00:10]} 9. Ne5 {[%emt 0:15:00]} Bf5 {[%emt 0:02:24]} 10. Bf4 {[%emt 0:07:23]} Ne4 {[%emt 0:06:43]} 11. Nxc6 {[%emt 0:04:54]} bxc6 {[%emt 0:00:25]} 12. Nxe4 {[%emt 0:05:58]} Bxe4 {[%emt 0:01:36]} 13. f3 {[%emt 0:12:48]} Bf5 {[%emt 0:00:18]} 14. Qd2 {[%emt 0:00:22]} Qb6 {[%emt 0:02:34]} 15. Rfd1 {[%emt 0:00:55]} c5 {[%emt 0:06:41]} 16. Be3 {[%emt 0:05:57]} c4 {[%emt 0:05:41]} 17. Bf4 {[%emt 0:04:31]} a5 {[%emt 0:04:04]} 18. Kh1 {[%emt 0:01:32]} a4 {[%emt 0:00:48]} 19. a3 {[%emt 0:02:13]} Ra5 {[%emt 0:01:19]} 20. Qb4 {[%emt 0:05:38]} Rb5 {[%emt 0:10:33]} 21. Qxe7 {[%emt 0:00:19]} Rxb2 {[%emt 0:00:04]} 22. e4 {[%emt 0:05:58]} dxe4 {[%emt 0:00:29]} 23. fxe4 {[%emt 0:01:06]} Bg4 {[%emt 0:00:07]} 24. Rf1 {[%emt 0:00:26]} Rxg2 {[%emt 0:06:35]} 25. Kxg2 {[%emt 0:00:31]} Qb2+ {[%emt 0:00:05]} 26. Kh1 {[%emt 0:01:17]} Bh3 {[%emt 0:00:06]} 27. Rg1 {[%emt 0:00:15]} Qf2 {[%emt 0:00:08]} 0-1